[Event "Masters Tournament (MTO)"]
[Site "Biel, Switzerland"]
[Date "2026.07.17"]
[Round "5.1"]
[White "Gopal, G.N."]
[Black "Acs, Peter"]
[Result "1/2-1/2"]
[TimeControl "100+30+30sec/move"]
[WhiteTitle "-"]
[BlackTitle "-"]
[WhiteFideId "5015693"]
[BlackFideId "708020"]
[WhiteElo "2529"]
[BlackElo "2561"]

1. e4 {[%clk 01:40:57]} {[%emt 00:00:03]} c5 {[%clk 01:40:50]} {[%emt
00:00:11]} 2. Nf3 {[%clk 01:41:22]} {[%emt 00:00:04]} e6 {[%clk 01:41:07]}
{[%emt 00:00:12]} 3. d4 {[%clk 01:41:49]} {[%emt 00:00:04]} cxd4 {[%clk
01:41:31]} {[%emt 00:00:06]} 4. Nxd4 {[%clk 01:42:15]} {[%emt 00:00:05]} a6
{[%clk 01:41:47]} {[%emt 00:00:14]} 5. Bd3 {[%clk 01:42:12]} {[%emt 00:00:33]}
Bc5 {[%clk 01:41:55]} {[%emt 00:00:21]} 6. Nb3 {[%clk 01:42:24]} {[%emt
00:00:20]} Ba7 {[%clk 01:42:12]} {[%emt 00:00:11]} 7. Qe2 {[%clk 01:41:44]}
{[%emt 00:01:10]} Ne7 {[%clk 01:41:43]} {[%emt 00:00:59]} 8. Be3 {[%clk
01:41:34]} {[%emt 00:00:40]} O-O {[%clk 01:40:37]} {[%emt 00:01:35]} 9. Nc3
{[%clk 01:38:21]} {[%emt 00:03:44]} b5 {[%clk 01:40:03]} {[%emt 00:01:04]} 10.
f4 {[%clk 01:09:46]} {[%emt 00:29:05]} b4 {[%clk 01:31:46]} {[%emt 00:08:47]}
11. Bxa7 {[%clk 01:09:13]} {[%emt 00:01:04]} Rxa7 {[%clk 01:31:48]} {[%emt
00:00:27]} 12. Qe3 {[%clk 01:08:59]} {[%emt 00:00:43]} Nbc6 {[%clk 01:30:05]}
{[%emt 00:02:13]} 13. Ne2 {[%clk 01:02:43]} {[%emt 00:06:47]} Qc7 {[%clk
01:22:21]} {[%emt 00:08:14]} 14. O-O {[%clk 01:02:06]} {[%emt 00:01:07]} Rd8
{[%clk 01:21:16]} {[%emt 00:01:34]} 15. Kh1 {[%clk 01:01:10]} {[%emt 00:01:27]}
a5 {[%clk 01:16:27]} {[%emt 00:05:19]} 16. a4 {[%clk 00:57:58]} {[%emt
00:03:42]} bxa3 {[%clk 00:56:53]} {[%emt 00:20:03]} 17. Rxa3 {[%clk 00:56:12]}
{[%emt 00:02:16]} Nb4 {[%clk 00:56:50]} {[%emt 00:00:33]} 18. Nc3 {[%clk
00:42:27]} {[%emt 00:14:15]} Ra8 {[%clk 00:48:35]} {[%emt 00:08:45]} 19. Rfa1
{[%clk 00:31:58]} {[%emt 00:10:59]} Nec6 {[%clk 00:42:18]} {[%emt 00:06:47]} 20.
Nb5 {[%clk 00:24:53]} {[%emt 00:07:35]} Qb8 {[%clk 00:37:01]} {[%emt 00:05:47]}
21. N5d4 {[%clk 00:23:59]} {[%emt 00:01:24]} Nxd4 {[%clk 00:33:34]} {[%emt
00:03:57]} 22. Nxd4 {[%clk 00:24:20]} {[%emt 00:00:09]} Nxd3 {[%clk 00:29:10]}
{[%emt 00:04:54]} 23. cxd3 {[%clk 00:24:31]} {[%emt 00:00:19]} Qxb2 {[%clk
00:29:09]} {[%emt 00:00:31]} 24. h3 {[%clk 00:18:26]} {[%emt 00:06:35]} Qb6
{[%clk 00:28:12]} {[%emt 00:01:26]} 25. Nc2 {[%clk 00:14:54]} {[%emt 00:04:03]}
Qc7 {[%clk 00:27:17]} {[%emt 00:01:24]} 26. Qd2 {[%clk 00:14:14]} {[%emt
00:01:10]} Bb7 {[%clk 00:20:17]} {[%emt 00:07:31]} 27. Rxa5 {[%clk 00:13:24]}
{[%emt 00:01:20]} 1/2-1/2

[Event "Masters Tournament (MTO)"]
[Site "Biel, Switzerland"]
[Date "2026.07.17"]
[Round "5.2"]
[White "Gloeckler, Christian"]
[Black "Aronyak, Ghosh"]
[Result "1/2-1/2"]
[TimeControl "100+30+30sec/move"]
[WhiteTitle "-"]
[BlackTitle "-"]
[WhiteFideId "34608966"]
[BlackFideId "25072846"]
[WhiteElo "2506"]
[BlackElo "2549"]

1. e4 {[%clk 01:40:49]} {[%emt 00:00:02]} c6 {[%clk 01:40:14]} {[%emt
00:00:55]} 2. Nc3 {[%clk 01:41:12]} {[%emt 00:00:07]} d5 {[%clk 01:40:15]}
{[%emt 00:00:28]} 3. Nf3 {[%clk 01:41:35]} {[%emt 00:00:07]} dxe4 {[%clk
01:39:45]} {[%emt 00:01:02]} 4. Nxe4 {[%clk 01:41:58]} {[%emt 00:00:07]} Nf6
{[%clk 01:40:11]} {[%emt 00:00:02]} 5. Qe2 {[%clk 01:42:17]} {[%emt 00:00:12]}
Nxe4 {[%clk 01:39:16]} {[%emt 00:01:26]} 6. Qxe4 {[%clk 01:42:38]} {[%emt
00:00:08]} Be6 {[%clk 01:39:39]} {[%emt 00:00:06]} 7. b3 {[%clk 01:42:58]}
{[%emt 00:00:10]} Nd7 {[%clk 01:39:53]} {[%emt 00:00:16]} 8. Bb2 {[%clk
01:43:21]} {[%emt 00:00:07]} Qa5 {[%clk 01:39:36]} {[%emt 00:00:47]} 9. Qe3
{[%clk 01:34:10]} {[%emt 00:09:41]} Bf5 {[%clk 01:30:06]} {[%emt 00:10:00]} 10.
Bc3 {[%clk 01:27:30]} {[%emt 00:07:09]} Qb6 {[%clk 01:25:01]} {[%emt 00:05:36]}
11. Nd4 {[%clk 01:22:52]} {[%emt 00:05:08]} Bg6 {[%clk 01:21:59]} {[%emt
00:03:32]} 12. f4 {[%clk 01:21:55]} {[%emt 00:01:27]} O-O-O {[%clk 01:08:46]}
{[%emt 00:13:42]} 13. f5 {[%clk 01:09:34]} {[%emt 00:12:51]} e5 {[%clk
01:08:04]} {[%emt 00:01:13]} 14. Ne6 {[%clk 01:09:50]} {[%emt 00:00:15]} Qxe3+
{[%clk 01:07:49]} {[%emt 00:00:45]} 15. dxe3 {[%clk 01:09:54]} {[%emt
00:00:26]} fxe6 {[%clk 01:07:56]} {[%emt 00:00:22]} 16. fxg6 {[%clk 01:10:16]}
{[%emt 00:00:07]} hxg6 {[%clk 01:08:22]} {[%emt 00:00:05]} 17. Bc4 {[%clk
01:08:25]} {[%emt 00:02:21]} Re8 {[%clk 01:07:24]} {[%emt 00:01:28]} 18. Bd3
{[%clk 01:02:05]} {[%emt 00:06:50]} Rh6 {[%clk 01:03:21]} {[%emt 00:04:33]} 19.
h3 {[%clk 00:54:57]} {[%emt 00:07:38]} Be7 {[%clk 00:58:30]} {[%emt 00:05:20]}
20. Be2 {[%clk 00:44:50]} {[%emt 00:10:37]} Bh4+ {[%clk 00:52:19]} {[%emt
00:06:41]} 21. Kd2 {[%clk 00:40:44]} {[%emt 00:04:36]} Bf6 {[%clk 00:51:30]}
{[%emt 00:01:19]} 22. e4 {[%clk 00:38:57]} {[%emt 00:02:18]} Bg5+ {[%clk
00:48:43]} {[%emt 00:03:16]} 23. Ke1 {[%clk 00:37:11]} {[%emt 00:02:16]} Bh4+
{[%clk 00:38:19]} {[%emt 00:10:54]} 24. Kf1 {[%clk 00:36:47]} {[%emt 00:00:54]}
Bg3 {[%clk 00:37:30]} {[%emt 00:01:19]} 1/2-1/2

[Event "Masters Tournament (MTO)"]
[Site "Biel, Switzerland"]
[Date "2026.07.17"]
[Round "5.3"]
[White "Ghosh, Diptayan"]
[Black "Nguyen, Thi Mai Hung"]
[Result "1/2-1/2"]
[TimeControl "100+30+30sec/move"]
[WhiteTitle "-"]
[BlackTitle "-"]
[WhiteFideId "5045207"]
[BlackFideId "12401676"]
[WhiteElo "2554"]
[BlackElo "2260"]

1. Nf3 {[%clk 01:38:25]} {[%emt 00:02:35]} d5 {[%clk 01:40:41]} {[%emt
00:00:20]} 2. g3 {[%clk 01:38:39]} {[%emt 00:00:15]} Nf6 {[%clk 01:41:05]}
{[%emt 00:00:06]} 3. Bg2 {[%clk 01:39:04]} {[%emt 00:00:06]} c6 {[%clk
01:38:25]} {[%emt 00:03:09]} 4. O-O {[%clk 01:39:22]} {[%emt 00:00:11]} Bf5
{[%clk 01:37:31]} {[%emt 00:01:24]} 5. c4 {[%clk 01:37:57]} {[%emt 00:01:55]}
Nbd7 {[%clk 01:28:19]} {[%emt 00:09:43]} 6. cxd5 {[%clk 01:26:03]} {[%emt
00:12:24]} cxd5 {[%clk 01:28:39]} {[%emt 00:00:10]} 7. Qb3 {[%clk 01:11:20]}
{[%emt 00:15:13]} Qc8 {[%clk 01:15:10]} {[%emt 00:13:59]} 8. d3 {[%clk
01:10:00]} {[%emt 00:01:50]} Nc5 {[%clk 01:11:10]} {[%emt 00:04:31]} 9. Qc3
{[%clk 01:02:10]} {[%emt 00:08:19]} e6 {[%clk 01:02:16]} {[%emt 00:09:25]} 10.
Be3 {[%clk 01:02:12]} {[%emt 00:00:27]} b6 {[%clk 01:02:14]} {[%emt 00:00:32]}
11. Rc1 {[%clk 00:57:20]} {[%emt 00:05:22]} Qb7 {[%clk 01:02:16]} {[%emt
00:00:29]} 12. Nd4 {[%clk 00:54:46]} {[%emt 00:03:04]} Bg6 {[%clk 00:59:48]}
{[%emt 00:02:58]} 13. b4 {[%clk 00:47:40]} {[%emt 00:07:36]} Na6 {[%clk
00:57:25]} {[%emt 00:02:53]} 14. a3 {[%clk 00:44:59]} {[%emt 00:03:11]} Bd6
{[%clk 00:55:09]} {[%emt 00:02:46]} 15. Nd2 {[%clk 00:38:59]} {[%emt 00:06:30]}
Qd7 {[%clk 00:48:37]} {[%emt 00:07:02]} 16. Nc4 {[%clk 00:27:35]} {[%emt
00:11:54]} Bc7 {[%clk 00:41:48]} {[%emt 00:07:19]} 17. Bf4 {[%clk 00:25:53]}
{[%emt 00:02:13]} O-O {[%clk 00:36:15]} {[%emt 00:06:03]} 18. Ne5 {[%clk
00:24:49]} {[%emt 00:01:34]} Bxe5 {[%clk 00:36:21]} {[%emt 00:00:24]} 19. Bxe5
{[%clk 00:25:15]} {[%emt 00:00:04]} Rfc8 {[%clk 00:32:33]} {[%emt 00:04:18]} 20.
Nc6 {[%clk 00:23:17]} {[%emt 00:02:28]} Ne8 {[%clk 00:31:08]} {[%emt 00:01:54]}
21. b5 {[%clk 00:21:10]} {[%emt 00:02:37]} Nc5 {[%clk 00:19:48]} {[%emt
00:11:50]} 22. Bd4 {[%clk 00:20:12]} {[%emt 00:01:28]} Nb7 {[%clk 00:19:32]}
{[%emt 00:00:46]} 23. Qb4 {[%clk 00:20:13]} {[%emt 00:00:29]} Nbd6 {[%clk
00:16:43]} {[%emt 00:03:19]} 24. a4 {[%clk 00:18:34]} {[%emt 00:02:10]} Rc7
{[%clk 00:15:54]} {[%emt 00:01:19]} 25. e4 {[%clk 00:10:33]} {[%emt 00:08:30]}
f6 {[%clk 00:13:10]} {[%emt 00:03:14]} 26. Bb2 {[%clk 00:09:19]} {[%emt
00:01:44]} dxe4 {[%clk 00:12:46]} {[%emt 00:00:54]} 27. dxe4 {[%clk 00:09:45]}
{[%emt 00:00:04]} e5 {[%clk 00:13:10]} {[%emt 00:00:06]} 28. Rd1 {[%clk
00:09:26]} {[%emt 00:00:50]} Qe6 {[%clk 00:12:08]} {[%emt 00:01:32]} 29. Ba3
{[%clk 00:09:18]} {[%emt 00:00:38]} a5 {[%clk 00:11:12]} {[%emt 00:01:26]} 30.
Qc3 {[%clk 00:06:30]} {[%emt 00:03:18]} Nc4 {[%clk 00:08:51]} {[%emt 00:02:51]}
31. Rac1 {[%clk 00:06:24]} {[%emt 00:00:36]} Bf7 {[%clk 00:06:47]} {[%emt
00:02:34]} 32. Bf1 {[%clk 00:05:56]} {[%emt 00:00:58]} Nxa3 {[%clk 00:06:59]}
{[%emt 00:00:18]} 33. Qxa3 {[%clk 00:06:22]} {[%emt 00:00:04]} Qb3 {[%clk
00:06:58]} {[%emt 00:00:32]} 34. Qa1 {[%clk 00:06:04]} {[%emt 00:00:48]} Qa2
{[%clk 00:05:57]} {[%emt 00:01:31]} 35. Qc3 {[%clk 00:02:20]} {[%emt 00:04:14]}
Qb3 {[%emt 00:03:03]} 36. Qa1 {[%clk 00:02:23]} Kh8 {[%clk 00:03:10]} {[%emt
00:01:10]} 37. Rd2 {[%clk 00:02:15]} {[%emt 00:00:37]} Qf3 {[%clk 00:02:03]}
{[%emt 00:01:37]} 38. Re1 {[%clk 00:02:08]} {[%emt 00:00:37]} h5 {[%clk
00:01:42]} {[%emt 00:00:51]} 39. Re3 {[%clk 00:01:03]} {[%emt 00:01:35]} Qg4
{[%clk 00:02:08]} {[%emt 00:00:04]} 40. Qa3 {[%clk 00:01:04]} {[%emt 00:00:29]}
Rd7 {[%clk 00:00:53]} {[%emt 00:01:44]} 41. Rxd7 {[%clk 00:20:50]} {[%emt
00:10:44]} Qxd7 {[%clk 00:31:17]} {[%emt 00:00:06]} 42. Rd3 {[%clk 00:21:13]}
{[%emt 00:00:06]} Qg4 {[%clk 00:25:28]} {[%emt 00:06:19]} 43. Qf8+ {[%clk
00:16:07]} {[%emt 00:05:36]} Bg8 {[%clk 00:25:52]} {[%emt 00:00:05]} 44. Rd8
{[%clk 00:13:35]} {[%emt 00:03:02]} Rxd8 {[%clk 00:26:04]} {[%emt 00:00:19]} 45.
Nxd8 {[%clk 00:14:03]} {[%emt 00:00:02]} Nd6 {[%clk 00:19:25]} {[%emt
00:07:08]} 46. Qxd6 {[%clk 00:14:04]} {[%emt 00:00:29]} Qxe4 {[%clk 00:19:52]}
{[%emt 00:00:03]} 47. Ne6 {[%clk 00:09:49]} {[%emt 00:04:44]} Qxa4 {[%clk
00:19:09]} {[%emt 00:01:13]} 48. h3 {[%clk 00:09:57]} {[%emt 00:00:22]} Qb3
{[%clk 00:18:34]} {[%emt 00:01:05]} 49. Nf8 {[%clk 00:09:26]} {[%emt 00:01:01]}
Bd5 {[%clk 00:15:23]} {[%emt 00:03:41]} 50. Ng6+ {[%clk 00:05:20]} {[%emt
00:04:37]} Kh7 {[%clk 00:15:46]} {[%emt 00:00:07]} 51. Ne7 {[%clk 00:05:32]}
{[%emt 00:00:17]} Be4 {[%clk 00:15:31]} {[%emt 00:00:45]} 52. Be2 {[%clk
00:04:54]} {[%emt 00:01:08]} h4 {[%clk 00:12:41]} {[%emt 00:03:20]} 53. Qd1
{[%clk 00:03:33]} {[%emt 00:01:51]} a4 {[%clk 00:12:08]} {[%emt 00:01:03]} 54.
f3 {[%clk 00:03:05]} {[%emt 00:00:58]} Bc2 {[%clk 00:07:50]} {[%emt 00:04:48]}
55. Qd5 {[%clk 00:01:58]} {[%emt 00:01:37]} hxg3 {[%clk 00:06:52]} {[%emt
00:01:28]} 56. Kg2 {[%clk 00:02:06]} {[%emt 00:00:22]} Kh6 {[%clk 00:03:25]}
{[%emt 00:03:57]} 57. Qd8 {[%clk 00:01:22]} {[%emt 00:01:14]} Kh7 {[%clk
00:01:02]} {[%emt 00:02:53]} 58. Qc8 {[%clk 00:01:06]} {[%emt 00:00:46]} Bb1
{[%clk 00:00:48]} {[%emt 00:00:45]} 59. Bc4 {[%clk 00:01:16]} {[%emt 00:00:19]}
Qc2+ {[%clk 00:01:09]} {[%emt 00:00:09]} 60. Kxg3 {[%clk 00:01:45]} {[%emt
00:00:01]} a3 {[%clk 00:01:04]} {[%emt 00:00:35]} 61. Qg8+ {[%clk 00:01:09]}
{[%emt 00:01:05]} Kh6 {[%clk 00:01:33]} {[%emt 00:00:02]} 62. Qh8+ {[%clk
00:01:31]} {[%emt 00:00:08]} Qh7 {[%clk 00:02:01]} {[%emt 00:00:02]} 63. Qa8
{[%clk 00:01:45]} {[%emt 00:00:16]} Kg5 {[%clk 00:02:01]} {[%emt 00:00:29]} 64.
Qc8 {[%clk 00:01:25]} {[%emt 00:00:50]} Qh4+ {[%clk 00:02:21]} {[%emt
00:00:11]} 65. Kg2 {[%clk 00:01:54]} Qd4 {[%clk 00:02:08]} {[%emt 00:00:43]} 66.
h4+ {[%clk 00:01:48]} {[%emt 00:00:35]} Qxh4 {[%clk 00:02:06]} {[%emt
00:00:32]} 67. Ba2 {[%clk 00:02:05]} {[%emt 00:00:14]} Bd3 {[%emt 00:02:43]} 68.
Qf8 {[%clk 00:01:05]} g6 {[%clk 00:01:10]} {[%emt 00:00:43]} 69. Ng8 {[%clk
00:00:47]} {[%emt 00:00:47]} Kf4 {[%clk 00:00:50]} {[%emt 00:00:51]} 70. Qb4+
{[%clk 00:01:00]} {[%emt 00:00:17]} e4 {[%clk 00:00:48]} {[%emt 00:00:33]} 71.
Qd2+ {[%clk 00:01:01]} {[%emt 00:00:28]} Ke5 {[%clk 00:00:41]} {[%emt
00:00:37]} 72. Qc3+ {[%clk 00:01:26]} {[%emt 00:00:05]} Kf4 {[%clk 00:01:08]}
{[%emt 00:00:03]} 73. Qd2+ {[%clk 00:00:50]} {[%emt 00:01:06]} Ke5 {[%clk
00:01:18]} {[%emt 00:00:20]} 74. Qc3+ {[%clk 00:01:09]} {[%emt 00:00:11]} Kf4
{[%clk 00:01:47]} 75. Qd2+ {[%clk 00:00:54]} {[%emt 00:00:46]} e3 {[%emt
00:00:16]} 76. Qb4+ {[%emt 00:00:03]} Kg5 1/2-1/2

[Event "Masters Tournament (MTO)"]
[Site "Biel, Switzerland"]
[Date "2026.07.17"]
[Round "5.4"]
[White "Balabayeva, Xeniya"]
[Black "Sasikiran, Krishnan"]
[Result "1-0"]
[TimeControl "100+30+30sec/move"]
[WhiteTitle "-"]
[BlackTitle "-"]
[WhiteFideId "13719688"]
[BlackFideId "5004985"]
[WhiteElo "2302"]
[BlackElo "2546"]

1. d4 {[%clk 01:40:58]} {[%emt 00:00:02]} Nf6 {[%clk 01:40:44]} {[%emt
00:00:16]} 2. c4 {[%clk 01:41:20]} {[%emt 00:00:08]} g6 {[%clk 01:41:01]}
{[%emt 00:00:12]} 3. Nf3 {[%clk 01:41:35]} {[%emt 00:00:15]} Bg7 {[%clk
01:41:14]} {[%emt 00:00:18]} 4. g3 {[%clk 01:41:58]} {[%emt 00:00:07]} c6
{[%clk 01:39:41]} {[%emt 00:02:02]} 5. Bg2 {[%clk 01:41:46]} {[%emt 00:00:44]}
d5 {[%clk 01:39:35]} {[%emt 00:00:34]} 6. cxd5 {[%clk 01:35:48]} {[%emt
00:06:29]} cxd5 {[%clk 01:38:32]} {[%emt 00:01:33]} 7. O-O {[%clk 01:36:03]}
{[%emt 00:00:14]} O-O {[%clk 01:37:08]} {[%emt 00:01:54]} 8. Nc3 {[%clk
01:35:09]} {[%emt 00:01:24]} Nc6 {[%clk 01:34:51]} {[%emt 00:02:47]} 9. Ne5
{[%clk 01:28:44]} {[%emt 00:06:55]} Bf5 {[%clk 01:32:58]} {[%emt 00:02:23]} 10.
Bf4 {[%clk 01:20:43]} {[%emt 00:08:31]} Rc8 {[%clk 01:26:26]} {[%emt 00:07:02]}
11. Nxc6 {[%clk 01:18:11]} {[%emt 00:03:03]} bxc6 {[%clk 01:23:56]} {[%emt
00:02:59]} 12. Be5 {[%clk 01:06:36]} {[%emt 00:12:05]} h5 {[%clk 01:17:05]}
{[%emt 00:07:21]} 13. h3 {[%clk 00:54:17]} {[%emt 00:12:50]} Re8 {[%clk
01:11:55]} {[%emt 00:05:39]} 14. Re1 {[%clk 00:47:27]} {[%emt 00:07:19]} Qd7
{[%clk 01:04:35]} {[%emt 00:07:51]} 15. Kh2 {[%clk 00:42:38]} {[%emt 00:05:20]}
h4 {[%clk 00:54:26]} {[%emt 00:10:38]} 16. g4 {[%clk 00:35:31]} {[%emt
00:07:38]} Be6 {[%clk 00:53:21]} {[%emt 00:01:34]} 17. Qd2 {[%clk 00:26:07]}
{[%emt 00:09:55]} c5 {[%clk 00:45:57]} {[%emt 00:07:53]} 18. Rad1 {[%clk
00:25:38]} {[%emt 00:00:59]} Red8 {[%clk 00:36:31]} {[%emt 00:09:56]} 19. Kg1
{[%clk 00:23:42]} {[%emt 00:02:26]} cxd4 {[%clk 00:28:51]} {[%emt 00:08:11]} 20.
Bxd4 {[%clk 00:20:31]} {[%emt 00:03:40]} Ne4 {[%clk 00:23:19]} {[%emt
00:06:02]} 21. Qe3 {[%clk 00:19:22]} {[%emt 00:01:39]} Nxc3 {[%clk 00:21:26]}
{[%emt 00:02:23]} 22. bxc3 {[%clk 00:17:44]} {[%emt 00:02:08]} Rc4 {[%clk
00:18:52]} {[%emt 00:03:03]} 23. Qg5 {[%clk 00:11:24]} {[%emt 00:06:50]} Rdc8
{[%clk 00:12:31]} {[%emt 00:06:51]} 24. e4 {[%clk 00:09:17]} {[%emt 00:02:38]}
Bxd4 {[%clk 00:03:55]} {[%emt 00:09:06]} 25. cxd4 {[%clk 00:09:21]} {[%emt
00:00:26]} Qd6 {[%clk 00:01:22]} {[%emt 00:03:03]} 26. exd5 {[%clk 00:06:49]}
{[%emt 00:03:02]} Bd7 {[%clk 00:01:49]} {[%emt 00:00:03]} 27. Qxe7 {[%clk
00:04:35]} {[%emt 00:02:43]} Qxe7 {[%clk 00:02:05]} {[%emt 00:00:14]} 28. Rxe7
{[%clk 00:05:00]} {[%emt 00:00:06]} Ba4 {[%clk 00:02:33]} {[%emt 00:00:02]} 29.
Rd2 {[%clk 00:04:49]} {[%emt 00:00:41]} a6 {[%clk 00:02:21]} {[%emt 00:00:41]}
30. Ra7 {[%clk 00:02:28]} {[%emt 00:02:51]} Bb5 {[%clk 00:02:12]} {[%emt
00:00:38]} 31. d6 {[%clk 00:02:14]} {[%emt 00:00:45]} Rd8 {[%clk 00:01:38]}
{[%emt 00:01:04]} 32. Bd5 {[%clk 00:02:14]} {[%emt 00:00:30]} Rc1+ {[%clk
00:02:04]} {[%emt 00:00:04]} 33. Kh2 {[%clk 00:02:18]} {[%emt 00:00:25]} Rxd6
{[%clk 00:01:40]} {[%emt 00:00:54]} 34. Bxf7+ {[%clk 00:01:14]} {[%emt
00:01:35]} Kf8 {[%clk 00:02:02]} {[%emt 00:00:07]} 35. Bb3 {[%emt 00:00:50]}
Rc3 {[%clk 00:01:52]} 36. Rf7+ {[%clk 00:01:03]} {[%emt 00:01:01]} Ke8 {[%clk
00:02:11]} {[%emt 00:00:11]} 37. Rh7 {[%clk 00:01:21]} {[%emt 00:00:12]} g5
{[%clk 00:01:51]} {[%emt 00:00:51]} 38. Rg7 {[%clk 00:01:38]} {[%emt 00:00:12]}
Bf1 {[%clk 00:01:07]} {[%emt 00:01:13]} 39. Rxg5 {[%clk 00:00:53]} {[%emt
00:01:16]} Rxh3+ {[%clk 00:01:11]} {[%emt 00:00:25]} 40. Kg1 {[%clk 00:01:19]}
{[%emt 00:00:04]} Bb5 {[%clk 00:01:33]} {[%emt 00:00:08]} 41. Kg2 {[%clk
00:28:47]} {[%emt 00:03:02]} Rc3 {[%clk 00:29:18]} {[%emt 00:02:45]} 42. Rh5
{[%clk 00:26:46]} {[%emt 00:02:31]} Bd3 {[%clk 00:27:55]} {[%emt 00:01:53]} 43.
f3 {[%clk 00:21:27]} {[%emt 00:05:49]} Rxd4 {[%clk 00:24:34]} {[%emt 00:03:51]}
44. Kf2 {[%clk 00:20:48]} {[%emt 00:01:09]} Rd6 {[%clk 00:24:01]} {[%emt
00:01:03]} 45. Rxh4 {[%clk 00:20:40]} {[%emt 00:00:37]} Rf6 {[%clk 00:23:15]}
{[%emt 00:01:16]} 46. Rh5 {[%clk 00:20:01]} {[%emt 00:01:09]} Kf8 {[%clk
00:20:34]} {[%emt 00:03:10]} 47. Re5 {[%clk 00:18:39]} {[%emt 00:01:52]} Bg6
{[%clk 00:19:28]} {[%emt 00:01:37]} 48. Re3 {[%clk 00:17:51]} {[%emt 00:01:18]}
Rc7 {[%clk 00:18:46]} {[%emt 00:01:12]} 49. Kg3 {[%clk 00:17:42]} {[%emt
00:00:39]} Rc1 {[%clk 00:18:51]} {[%emt 00:00:25]} 50. Rd8+ {[%clk 00:17:57]}
{[%emt 00:00:14]} Kg7 {[%clk 00:19:07]} {[%emt 00:00:13]} 51. Re7+ {[%clk
00:18:18]} {[%emt 00:00:10]} 1-0

[Event "Masters Tournament (MTO)"]
[Site "Biel, Switzerland"]
[Date "2026.07.17"]
[Round "5.5"]
[White "Pleschke, Julius Jonas"]
[Black "Kozak, Adam"]
[Result "1/2-1/2"]
[TimeControl "100+30+30sec/move"]
[WhiteTitle "-"]
[BlackTitle "-"]
[WhiteFideId "54734258"]
[BlackFideId "753246"]
[WhiteElo "2280"]
[BlackElo "2531"]

1. d4 {[%clk 01:40:57]} {[%emt 00:00:02]} Nf6 {[%clk 01:37:28]} {[%emt
00:03:18]} 2. c4 {[%clk 01:41:25]} {[%emt 00:00:16]} e6 {[%clk 01:37:50]}
{[%emt 00:00:08]} 3. Nf3 {[%clk 01:41:50]} {[%emt 00:00:04]} b6 {[%clk
01:38:14]} {[%emt 00:00:09]} 4. g3 {[%clk 01:41:23]} {[%emt 00:00:55]} Bb7
{[%clk 01:38:37]} {[%emt 00:00:07]} 5. Bg2 {[%clk 01:41:48]} {[%emt 00:00:05]}
Be7 {[%clk 01:39:00]} {[%emt 00:00:09]} 6. O-O {[%clk 01:41:49]} {[%emt
00:00:27]} O-O {[%clk 01:39:21]} {[%emt 00:00:09]} 7. Nc3 {[%clk 01:36:06]}
{[%emt 00:06:14]} Ne4 {[%clk 01:39:44]} {[%emt 00:00:08]} 8. Bd2 {[%clk
01:36:18]} {[%emt 00:00:17]} Nxd2 {[%clk 01:40:05]} {[%emt 00:00:10]} 9. Qxd2
{[%clk 01:35:38]} {[%emt 00:01:09]} d6 {[%clk 01:40:27]} {[%emt 00:00:09]} 10.
Rac1 {[%clk 01:33:10]} {[%emt 00:02:58]} Nd7 {[%clk 01:39:30]} {[%emt
00:01:27]} 11. Rfd1 {[%clk 01:32:47]} {[%emt 00:00:53]} c6 {[%clk 01:38:21]}
{[%emt 00:01:40]} 12. e4 {[%clk 01:22:48]} {[%emt 00:10:29]} a6 {[%clk
01:37:55]} {[%emt 00:00:56]} 13. d5 {[%clk 01:13:49]} {[%emt 00:09:28]} cxd5
{[%clk 01:37:48]} {[%emt 00:00:37]} 14. cxd5 {[%clk 01:13:00]} {[%emt
00:01:19]} e5 {[%clk 01:38:09]} {[%emt 00:00:09]} 15. b4 {[%clk 01:06:23]}
{[%emt 00:07:06]} g6 {[%clk 01:37:56]} {[%emt 00:00:43]} 16. Qe2 {[%clk
01:02:28]} {[%emt 00:04:24]} f5 {[%clk 01:34:21]} {[%emt 00:04:06]} 17. Ne1
{[%clk 00:58:19]} {[%emt 00:04:38]} f4 {[%clk 01:13:10]} {[%emt 00:21:42]} 18.
Nd3 {[%clk 00:56:33]} {[%emt 00:02:16]} b5 {[%clk 01:11:20]} {[%emt 00:02:21]}
19. gxf4 {[%clk 00:47:21]} {[%emt 00:09:42]} exf4 {[%clk 01:11:37]} {[%emt
00:00:13]} 20. e5 {[%clk 00:47:31]} {[%emt 00:00:19]} f3 {[%clk 00:17:47]}
{[%emt 00:54:21]} 21. Bxf3 {[%clk 00:46:55]} {[%emt 00:01:05]} Nxe5 {[%clk
00:18:13]} {[%emt 00:00:05]} 22. Nxe5 {[%clk 00:45:22]} {[%emt 00:02:03]} dxe5
{[%clk 00:17:54]} {[%emt 00:00:49]} 23. Bg4 {[%clk 00:44:31]} {[%emt 00:01:21]}
Bd6 {[%clk 00:17:19]} {[%emt 00:01:06]} 24. Ne4 {[%clk 00:41:54]} {[%emt
00:03:06]} Bxb4 {[%clk 00:14:58]} {[%emt 00:02:52]} 25. Nc5 {[%clk 00:36:58]}
{[%emt 00:05:25]} Bxc5 {[%clk 00:12:26]} {[%emt 00:03:02]} 26. Be6+ {[%clk
00:37:19]} {[%emt 00:00:09]} Kg7 {[%clk 00:12:14]} {[%emt 00:00:43]} 27. Qxe5+
{[%clk 00:37:41]} {[%emt 00:00:08]} Qf6 {[%emt 00:01:50]} 1/2-1/2